bitfinex/quotes_BTCUSD_20241226
["timestamp","ask_amount","ask_price","bid_price","bid_amount"]
[1735177756048,8.649e-05,99081.0,99080.0,0.01325718]
[1735177767617,8.649e-05,99081.0,99080.0,0.01342858]
[1735177780114,8.649e-05,99081.0,99080.0,0.01241943]
[1735177781870,8.649e-05,99081.0,99080.0,0.0061714]
[1735177782624,8.649e-05,99081.0,99080.0,0.0041714]
[1735177783267,8.649e-05,99081.0,99080.0,0.0001714]
[1735177783491,8.649e-05,99081.0,99080.0,0.0071714]
[1735177784164,8.649e-05,99081.0,99080.0,0.0101714]
[1735177802045,8.649e-05,99081.0,99080.0,0.27564272]
[1735177802252,8.649e-05,99081.0,99080.0,0.35634272]
[1735177802548,8.649e-05,99081.0,99080.0,0.38624124]
[1735177803057,8.649e-05,99081.0,99080.0,0.63624124]
[1735177803258,8.649e-05,99081.0,99080.0,0.6967004]
[1735177803431,8.649e-05,99081.0,99080.0,0.6997004]
[1735177803645,8.649e-05,99081.0,99080.0,1.3110933]
[1735177803827,8.57e-05,99114.0,99083.0,0.1]
[1735177804037,8.57e-05,99114.0,99083.0,0.35499528]
[1735177804234,8.57e-05,99114.0,99083.0,0.35398632]
[1735177804444,8.57e-05,99114.0,99083.0,0.37698632]
[1735177805351,8.57e-05,99114.0,99083.0,0.38198632]
[1735177805818,8.57e-05,99114.0,99083.0,0.71715617]
[1735177806416,8.57e-05,99114.0,99083.0,0.71115617]
[1735177806795,8.57e-05,99114.0,99083.0,0.71615617]
[1735177807002,8.57e-05,99114.0,99083.0,0.71815617]
[1735177807313,8.57e-05,99114.0,99083.0,0.71615617]
[1735177807508,8.57e-05,99114.0,99083.0,0.71115617]
[1735177807887,8.57e-05,99114.0,99083.0,0.71915617]
[1735177808723,8.57e-05,99114.0,99083.0,0.72215617]
[1735177811720,8.57e-05,99114.0,99113.0,0.161431]
[1735177811926,0.00060455,99114.0,99113.0,0.26541732]
[1735177812291,0.00060455,99114.0,99113.0,0.161431]
[1735177813654,0.00060455,99114.0,99113.0,0.163431]
[1735177814061,0.00060455,99114.0,99113.0,0.168431]
[1735177814904,0.00060455,99114.0,99113.0,0.166431]
[1735177815207,0.00060455,99114.0,99113.0,0.16843981]
[1735177816327,0.00060455,99114.0,99113.0,0.17531252]
[1735177817514,0.00060455,99114.0,99113.0,0.27929884]
[1735177817675,0.00060455,99114.0,99113.0,0.27829003]
[1735177823078,0.00060455,99114.0,99113.0,0.27729003]
[1735177823526,0.00060455,99114.0,99113.0,0.27429003]
[1735177823945,0.00060455,99114.0,99113.0,0.28029003]
[1735177829393,5.8e-07,99129.0,99128.0,0.161407]
[1735177829646,0.00015617,99129.0,99128.0,0.161407]
[1735177831559,0.00115617,99129.0,99128.0,0.16399687]
[1735177832543,0.00015617,99129.0,99128.0,0.16399687]
[1735177832745,0.00015617,99129.0,99128.0,0.16499687]
[1735177832965,0.00015617,99129.0,99128.0,0.16799687]
[1735177834415,0.00015617,99129.0,99128.0,0.17615163]
[1735177839038,0.00015617,99129.0,99128.0,0.28114666]
[1735177839237,0.00015617,99129.0,99128.0,0.28013795]
[1735177841418,0.00015617,99129.0,99128.0,0.27613795]
[1735177841633,0.00015617,99129.0,99128.0,0.27713795]
[1735177841865,0.00015617,99129.0,99128.0,0.28113795]
[1735177842480,0.00015617,99129.0,99128.0,0.53113795]
[1735177843761,0.00015617,99129.0,99128.0,0.62144708]
[1735177845151,0.00015617,99129.0,99128.0,0.53113795]
[1735177845570,0.014994,99145.0,99144.0,0.161381]
[1735177847934,0.014994,99145.0,99144.0,0.162381]
[1735177849516,0.014994,99145.0,99144.0,0.001]
[1735177851253,0.014994,99145.0,99144.0,0.10599498]
[1735177851869,0.0150797,99145.0,99144.0,0.10599498]
[1735177852286,0.0150797,99145.0,99144.0,0.10499498]
[1735177852689,0.0150797,99145.0,99144.0,0.10999498]
[1735177853501,0.0150797,99145.0,99144.0,0.44287088]
[1735177853618,0.0150797,99145.0,99144.0,0.44186222]
[1735177853853,0.0150797,99145.0,99144.0,0.44286222]
[1735177854754,0.0150797,99145.0,99144.0,0.52546222]
[1735177855343,0.0150797,99145.0,99144.0,0.52046222]
[1735177855509,0.0150797,99145.0,99144.0,0.51946222]
[1735177855701,0.0150797,99145.0,99144.0,0.52346222]
[1735177855908,0.0150797,99145.0,99144.0,0.51946222]
[1735177856894,0.0150797,99145.0,99144.0,0.43786222]
[1735177857099,0.0150797,99145.0,99144.0,0.45832551]
[1735177857396,0.0150797,99145.0,99144.0,0.45732551]
[1735177857738,0.0150797,99145.0,99144.0,0.46932551]
[1735177861286,0.0001856,99149.0,99145.0,0.322758]
[1735177861537,0.0001856,99149.0,99147.0,0.161376]
[1735177862734,0.0001856,99149.0,99147.0,0.166376]
[1735177864093,0.0001856,99149.0,99147.0,0.161376]
[1735177864499,0.0001856,99149.0,99147.0,0.168376]
[1735177864772,0.0001856,99149.0,99147.0,0.170376]
[1735177864979,0.0001856,99149.0,99147.0,0.175376]
[1735177865770,0.0001856,99149.0,99147.0,0.163376]
[1735177865976,0.0001856,99149.0,99147.0,0.168376]
[1735177866383,0.0001856,99149.0,99147.0,0.169376]
[1735177866797,0.0001856,99149.0,99147.0,0.168376]
[1735177867119,0.0001856,99149.0,99147.0,0.170376]
[1735177867572,0.0001856,99149.0,99147.0,0.168376]
[1735177867786,0.0001856,99149.0,99147.0,0.007]
[1735177867985,0.0001856,99149.0,99147.0,0.001]
[1735177868195,0.0001856,99149.0,99148.0,0.161374]
[1735177870319,0.0001856,99149.0,99148.0,0.166374]
[1735177870954,0.0001856,99149.0,99148.0,0.167374]
[1735177880546,0.0001856,99149.0,99148.0,0.37236888]
[1735177880768,0.01053325,99162.0,99148.0,0.72086032]
[1735177880985,0.00015553,99162.0,99161.0,0.237853]
[1735177881203,0.00015553,99162.0,99161.0,0.61483932]
[1735177881418,4.633e-05,99165.0,99164.0,0.2]
[1735177881626,4.633e-05,99165.0,99164.0,0.47799447]
[1735177881834,4.633e-05,99165.0,99164.0,0.37698632]
[1735177882592,4.633e-05,99165.0,99164.0,0.47698632]
[1735177883189,4.633e-05,99165.0,99164.0,1.08091553]
[1735177883576,8.57e-05,99181.0,99178.0,0.161326]
[1735177883779,8.57e-05,99181.0,99178.0,0.26531232]
[1735177885341,8.57e-05,99181.0,99178.0,0.77815881]
[1735177885490,8.57e-05,99181.0,99178.0,0.67417249]
[1735177885900,8.57e-05,99181.0,99178.0,0.67817249]
[1735177886098,8.57e-05,99181.0,99178.0,0.68675428]
[1735177886485,8.57e-05,99181.0,99178.0,0.26387629]
[1735177887089,8.57e-05,99181.0,99178.0,0.26487629]
[1735177887287,8.57e-05,99181.0,99178.0,0.26087629]
[1735177887534,8.57e-05,99181.0,99178.0,0.26587629]
[1735177887751,8.57e-05,99181.0,99178.0,0.16990779]
[1735177888134,0.0100857,99179.0,99178.0,0.17390779]
[1735177889791,0.0100857,99179.0,99178.0,0.65370229]
[1735177890011,1e-08,99181.0,99180.0,0.1]
[1735177890234,1e-08,99181.0,99180.0,0.20499431]
[1735177890670,1e-08,99181.0,99180.0,0.35499431]
[1735177890876,1e-08,99181.0,99180.0,0.35398632]
[1735177891110,1e-08,99181.0,99180.0,0.68545443]
[1735177891290,1e-08,99181.0,99180.0,0.69045443]
[1735177891494,1e-08,99181.0,99180.0,0.81345443]
[1735177891936,1e-08,99181.0,99180.0,0.94805652]
[1735177892084,1e-08,99181.0,99180.0,0.96835749]
[1735177892290,1e-08,99181.0,99180.0,0.86835749]
[1735177892472,1e-08,99181.0,99180.0,0.86935749]
[1735177893139,1e-08,99181.0,99180.0,0.7337554]
[1735177893428,1e-08,99181.0,99180.0,0.7377554]
[1735177894019,1e-08,99181.0,99180.0,0.7327554]
[1735177894218,1e-08,99181.0,99180.0,0.7417554]
[1735177895936,1e-08,99181.0,99180.0,0.8417554]
[1735177896395,0.0001,99189.0,99180.0,0.8417554]
[1735177896396,7.1e-07,99189.0,99188.0,0.2]
[1735177896605,8.57e-05,99214.0,99204.0,0.411283]
[1735177896816,8.57e-05,99214.0,99204.0,0.51526932]
[1735177897019,0.00025553,99205.0,99204.0,0.51526932]
[1735177897819,0.00025553,99205.0,99204.0,0.52026932]
[1735177897962,0.00025553,99205.0,99204.0,0.54011105]
[1735177898164,5.3e-07,99205.0,99204.0,0.66221105]
[1735177898374,0.014994,99244.0,99228.0,0.161244]
[1735177898622,0.00061824,99229.0,99228.0,0.26523032]
[1735177898984,0.00061824,99229.0,99228.0,0.10398632]
[1735177899179,0.00061824,99229.0,99228.0,0.10499397]
[1735177899575,0.00061824,99229.0,99228.0,0.10398632]
[1735177899772,0.00061824,99229.0,99228.0,0.00865738]
[1735177900132,0.00061824,99229.0,99219.0,0.10568124]
[1735177900377,0.00061824,99229.0,99220.0,0.10398632]
[1735177900782,0.00061824,99229.0,99228.0,0.006]
[1735177901315,0.08321824,99229.0,99220.0,0.10398632]
[1735177901505,0.08321824,99229.0,99219.0,0.01397565]
[1735177901716,0.08321824,99229.0,99211.0,0.00100776]
[1735177901862,0.08321824,99229.0,99212.0,0.10398632]
[1735177902066,0.08321824,99229.0,99228.0,0.003]
[1735177902297,0.08321824,99229.0,99213.0,0.00100776]
[1735177902454,0.08321824,99229.0,99214.0,0.10398632]
[1735177902660,0.08321824,99229.0,99215.0,0.00100776]
[1735177902860,0.08321824,99229.0,99215.0,0.10499408]
[1735177903354,0.08321824,99229.0,99216.0,0.161264]
[1735177903564,0.08321824,99229.0,99220.0,0.003]
[1735177903861,0.08321824,99229.0,99217.0,0.00100776]
[1735177906494,0.08321824,99229.0,99210.0,0.0088506]
[1735177906890,0.08321824,99229.0,99212.0,0.161269]
[1735177908040,0.08321824,99229.0,99220.0,0.161256]
[1735177908666,0.08321824,99229.0,99212.0,0.16127]
[1735177908873,0.161244,99228.0,99214.0,0.00100776]
[1735177909120,0.161244,99228.0,99212.0,0.16127]
[1735177909329,0.161253,99223.0,99210.0,0.00863044]
[1735177909531,0.0826,99222.0,99206.0,0.16128]
[1735177909907,0.0826,99222.0,99200.0,0.00881538]
[1735177910148,0.0826,99222.0,99210.0,0.161272]
[1735177910767,0.161256,99221.0,99208.0,0.161276]
[1735177910908,0.0826,99222.0,99208.0,0.161276]
[1735177911107,0.0826,99222.0,99209.0,0.10398632]
[1735177911318,0.0826,99222.0,99218.0,0.161261]
[1735177911932,0.0826,99222.0,99218.0,0.322522]
[1735177913290,0.07660394,99229.0,99219.0,0.10398632]
[1735177913498,0.07660394,99229.0,99228.0,0.161244]
[1735177913675,0.00070394,99229.0,99228.0,0.161244]
[1735177914882,0.00070394,99229.0,99228.0,0.165244]
[1735177916795,0.00070394,99229.0,99228.0,0.161244]
[1735177917128,0.00070394,99229.0,99228.0,0.163244]
[1735177917311,0.00070394,99229.0,99228.0,0.161244]
[1735177917551,8.58e-05,99245.0,99241.0,0.161223]
[1735177917782,0.0001,99269.0,99246.0,0.1]
[1735177917996,0.0001,99269.0,99247.0,0.10499369]
[1735177917997,0.0709,99258.0,99247.0,0.10499369]
[1735177918207,0.00015541,99249.0,99248.0,0.161212]
[1735177919030,0.00015541,99249.0,99247.0,0.161212]
[1735177920053,0.00015541,99249.0,99247.0,0.165212]
[1735177920463,0.00015541,99249.0,99247.0,0.161212]
[1735177920599,0.00015541,99249.0,99247.0,0.162212]
[1735177921630,0.00015541,99249.0,99248.0,0.00454846]
[1735177923358,0.00015541,99249.0,99248.0,0.00654846]
[1735177924204,0.08215541,99249.0,99248.0,0.00654846]
[1735177924409,0.08224111,99249.0,99248.0,0.00654846]
[1735177926182,0.08224111,99249.0,99248.0,0.00454846]
[1735177926588,0.08224111,99249.0,99248.0,0.00854846]
[1735177926738,0.08224111,99249.0,99248.0,0.00454846]
[1735177928004,0.18622743,99249.0,99248.0,0.00454846]
[1735177929373,0.00024111,99249.0,99248.0,0.00454846]
[1735177929701,0.07724111,99249.0,99248.0,0.00454846]
[1735177931840,0.18122743,99249.0,99248.0,0.00454846]
[1735177934618,0.28122743,99249.0,99248.0,0.00454846]
[1735177934837,0.43122743,99249.0,99248.0,0.00454846]
[1735177935737,0.50122743,99249.0,99248.0,0.00454846]
[1735177935967,0.50122743,99249.0,99214.0,0.0893635]
[1735177935968,0.161251,99225.0,99214.0,0.0893635]
[1735177936178,0.082,99235.0,99215.0,0.32253]
[1735177936378,0.082,99235.0,99214.0,0.09824668]
[1735177936580,0.082,99235.0,99227.0,0.161245]
[1735177937563,0.082,99235.0,99214.0,0.00888318]
[1735177937768,0.161244,99229.0,99215.0,0.161265]
[1735177938158,0.16125,99225.0,99210.0,0.161274]
[1735177938374,0.082,99224.0,99212.0,0.0893635]
[1735177939185,0.082,99224.0,99213.0,0.161269]
[1735177941018,0.243251,99224.0,99213.0,0.161269]
[1735177941299,0.082,99224.0,99213.0,0.161269]
[1735177941712,0.15,99222.0,99209.0,0.0001714]
[1735177941913,0.16127,99213.0,99209.0,0.0001714]
[1735177942144,0.18268632,99212.0,99209.0,0.0001714]
[1735177942341,0.15,99211.0,99209.0,0.0001714]
[1735177942558,0.33268632,99210.0,99209.0,0.0001714]
[1735177943203,0.33268632,99210.0,99209.0,0.00068964]
[1735177945944,0.57320195,99210.0,99209.0,0.00068964]
[1735177946149,0.60368632,99210.0,99209.0,0.00068964]
[1735177946350,0.58068632,99210.0,99209.0,0.00068964]
[1735177946759,0.60368632,99210.0,99209.0,0.00068964]
[1735177947388,0.60668632,99210.0,99209.0,0.00168964]
[1735177947810,0.71567264,99210.0,99209.0,0.00268964]
[1735177948010,0.71567264,99210.0,99209.0,0.00168964]
[1735177948212,0.71267264,99210.0,99209.0,0.00168964]
[1735177949007,0.70767264,99210.0,99209.0,0.00068964]
[1735177949188,0.71267264,99210.0,99209.0,0.00168964]
[1735177949384,0.61367264,99210.0,99209.0,0.00268964]
[1735177949590,0.61267264,99210.0,99209.0,0.00168964]
[1735177949999,0.60867264,99210.0,99209.0,0.00168964]
[1735177950198,0.61367264,99210.0,99209.0,0.00268964]
[1735177950416,0.61467264,99210.0,99209.0,0.00368964]
[1735177950672,0.61467264,99210.0,99209.0,0.00268964]
[1735177950922,0.70967264,99210.0,99209.0,0.00268964]
[1735177951339,0.70767264,99210.0,99209.0,0.00068964]
[1735177951545,0.60368632,99210.0,99209.0,0.00068964]
[1735177952134,0.60768632,99210.0,99209.0,0.00168964]
[1735177952480,0.64404032,99210.0,99209.0,0.00068964]
[1735177952686,0.64504032,99210.0,99209.0,0.00168964]
[1735177952891,0.64904032,99210.0,99209.0,0.00168964]
[1735177953095,0.65004032,99210.0,99209.0,0.00268964]
[1735177953728,0.64604032,99210.0,99209.0,0.00168964]
[1735177953928,0.74802664,99210.0,99209.0,0.00068964]
[1735177954259,0.74902664,99210.0,99209.0,0.00168964]
[1735177954487,0.80969664,99210.0,99209.0,0.00068964]
[1735177955249,0.81369664,99210.0,99209.0,0.00168964]
[1735177955579,0.80969664,99210.0,99209.0,0.00068964]
[1735177955784,0.70571032,99210.0,99209.0,0.00068964]
[1735177955992,0.70971032,99210.0,99209.0,0.00168964]
[1735177956418,0.71071032,99210.0,99209.0,0.00268964]
[1735177956618,0.70871032,99210.0,99209.0,0.00168964]
[1735177956816,0.70971032,99210.0,99209.0,0.00268964]
[1735177957649,0.39934032,99210.0,99209.0,0.00268964]
[1735177957815,0.25898632,99210.0,99209.0,0.00268964]
[1735177958431,0.10498632,99210.0,99209.0,0.00168964]
[1735177958905,0.10898632,99210.0,99209.0,0.00268964]
[1735177959247,0.10398632,99210.0,99209.0,0.00068964]
[1735177959468,0.25398632,99210.0,99209.0,0.00068964]
[1735177959684,0.25898632,99210.0,99209.0,0.00168964]
[1735177959888,0.25898632,99210.0,99209.0,0.00068964]
[1735177960266,0.25998632,99210.0,99209.0,0.00068964]
[1735177961600,0.25598632,99210.0,99209.0,0.00068964]
[1735177962001,0.25998632,99210.0,99209.0,0.00068964]
[1735177962232,0.25798632,99210.0,99209.0,0.00068964]
[1735177962495,0.25398632,99210.0,99209.0,0.00068964]
[1735177962694,0.25898632,99210.0,99209.0,0.00068964]
[1735177963176,0.25998632,99210.0,99209.0,0.00068964]
[1735177963355,0.25398632,99210.0,99209.0,0.00068964]
[1735177963582,0.25798632,99210.0,99209.0,0.00068964]
[1735177963790,0.25898632,99210.0,99209.0,0.00068964]
[1735177965439,0.25398632,99210.0,99209.0,0.00068964]
[1735177965642,0.25698632,99210.0,99209.0,0.00068964]
[1735177965911,0.10798632,99210.0,99209.0,0.00068964]
[1735177966116,0.24395,99225.0,99209.0,0.00068964]
[1735177966321,0.10398632,99224.0,99210.0,0.161274]
[1735177967690,0.161252,99223.0,99210.0,0.161274]
[1735177967867,0.10398632,99222.0,99209.0,0.00068964]
[1735177968374,0.001,99210.0,99209.0,0.00068964]
[1735177968574,0.161264,99217.0,99209.0,0.00068964]
[1735177969020,0.161257,99220.0,99209.0,0.00068964]
[1735177969220,0.26524332,99220.0,99209.0,0.00068964]
[1735177969617,0.001,99210.0,99209.0,0.00068964]
[1735177969834,0.003,99217.0,99209.0,0.00068964]
[1735177971157,0.16126,99219.0,99209.0,0.00068964]
[1735177971359,0.10398632,99220.0,99209.0,0.00068964]
[1735177971782,0.001,99210.0,99209.0,0.00068964]
[1735177972108,0.10398632,99220.0,99209.0,0.00068964]
[1735177972518,0.001,99219.0,99209.0,0.00068964]
[1735177973102,0.10698632,99220.0,99209.0,0.00068964]
[1735177973445,0.10798632,99220.0,99209.0,0.00068964]
[1735177974316,0.10498632,99220.0,99209.0,0.00068964]
[1735177974821,0.003,99219.0,99209.0,0.00068964]
[1735177974958,0.001,99219.0,99209.0,0.00068964]
[1735177975161,0.001,99219.0,99210.0,0.161274]
[1735177975369,0.10698632,99220.0,99210.0,0.161274]
[1735177975767,0.10398632,99220.0,99210.0,0.161274]
[1735177976021,0.10498632,99220.0,99210.0,0.161274]
[1735177976225,0.003,99219.0,99210.0,0.161274]
[1735177977627,0.10498632,99220.0,99210.0,0.161274]
[1735177978134,0.10798632,99220.0,99210.0,0.161274]
[1735177978440,0.10698632,99220.0,99210.0,0.161274]
[1735177978786,0.10498632,99220.0,99210.0,0.161274]
[1735177979441,0.10698632,99220.0,99210.0,0.161274]
[1735177980038,0.10598632,99220.0,99210.0,0.161274]
[1735177980677,0.10398632,99220.0,99210.0,0.161274]
[1735177981065,0.10598632,99220.0,99210.0,0.161274]
[1735177981421,0.10698632,99220.0,99210.0,0.161274]
[1735177983244,0.10598632,99220.0,99210.0,0.161274]
[1735177983667,0.10398632,99220.0,99210.0,0.161274]
[1735177983977,0.10598632,99220.0,99210.0,0.161274]
[1735177984188,0.10598632,99220.0,99209.0,0.00068964]
[1735177984383,0.10598632,99220.0,99209.0,0.16196364]
[1735177984636,0.10698632,99220.0,99209.0,0.16196364]
[1735177985158,0.10498632,99220.0,99209.0,0.16196364]
[1735177985299,0.10598632,99220.0,99209.0,0.16196364]
[1735177985498,0.10698632,99220.0,99209.0,0.16196364]
[1735177986956,0.10698632,99220.0,99210.0,0.0001716]
[1735177988011,0.10398632,99220.0,99210.0,0.0001716]
[1735177988311,0.10698632,99220.0,99210.0,0.0001716]
[1735177989308,0.10698632,99220.0,99211.0,0.161272]
[1735177989871,0.10698632,99220.0,99210.0,0.0001716]
[1735177990049,0.10498632,99220.0,99210.0,0.0001716]
[1735177990477,0.10698632,99220.0,99210.0,0.0001716]
[1735177990864,0.10398632,99220.0,99210.0,0.0001716]
[1735177990994,0.10498632,99220.0,99210.0,0.0001716]
[1735177991217,0.10598632,99220.0,99210.0,0.0001716]
[1735177991414,0.10598632,99220.0,99211.0,0.161272]
[1735177991624,0.10698632,99220.0,99211.0,0.161272]
[1735177992546,0.10598632,99220.0,99211.0,0.161272]
[1735177992750,0.10698632,99220.0,99211.0,0.161272]
[1735177992928,0.10498632,99220.0,99211.0,0.161272]
[1735177993128,0.10698632,99220.0,99211.0,0.161272]
[1735177994295,0.10698632,99220.0,99210.0,0.0001716]
[1735177995445,0.10598632,99220.0,99210.0,0.0001716]
[1735177995874,0.10498632,99220.0,99210.0,0.0001716]
[1735177996318,0.10498632,99220.0,99210.0,0.1614436]
[1735177996319,0.10698632,99220.0,99210.0,0.1614436]
[1735177997017,0.10498632,99220.0,99210.0,0.1614436]
[1735177997391,0.10698632,99220.0,99210.0,0.1614436]
[1735177997596,0.0778,99219.0,99210.0,0.1614436]
[1735177997980,0.0778,99219.0,99210.0,0.0001716]
[1735177998897,0.0788,99219.0,99210.0,0.0001716]
[1735178000724,0.0808,99219.0,99210.0,0.0001716]
[1735178002222,0.26524732,99218.0,99210.0,0.0001716]
[1735178003703,0.26624732,99218.0,99210.0,0.0001716]
[1735178004003,0.26824732,99218.0,99210.0,0.0001716]
[1735178004208,0.322539,99213.0,99210.0,0.0001716]
[1735178004437,0.161272,99211.0,99210.0,0.0001716]
[1735178004638,0.29677095,99211.0,99210.0,0.0001716]
[1735178005280,0.29677095,99211.0,99210.0,0.0011716]
[1735178006689,0.29677095,99211.0,99210.0,0.0001716]
[1735178007091,0.29677095,99211.0,99210.0,0.0021716]
[1735178007346,0.29677095,99211.0,99210.0,0.0001716]
[1735178007543,0.26525832,99211.0,99210.0,0.0001716]
[1735178007757,0.29774491,99211.0,99210.0,0.0001716]
[1735178007959,0.30074491,99211.0,99210.0,0.0001716]
[1735178008508,0.26925832,99211.0,99210.0,0.0001716]
[1735178009742,0.004,99211.0,99210.0,0.0001716]
[1735178010863,0.0778,99219.0,99210.0,0.0001716]
[1735178011083,0.002,99211.0,99210.0,0.0001716]
[1735178011323,0.003,99211.0,99210.0,0.0001716]
[1735178011528,0.10398632,99218.0,99210.0,0.0001716]
[1735178011842,0.001,99211.0,99210.0,0.0001716]
[1735178013099,0.161262,99217.0,99210.0,0.0001716]
[1735178013308,0.002,99211.0,99210.0,0.0001716]
[1735178013712,0.161262,99217.0,99210.0,0.0001716]
[1735178013932,0.003,99211.0,99210.0,0.0001716]
[1735178014711,0.16127,99213.0,99210.0,0.0001716]
[1735178015089,0.42652632,99213.0,99210.0,0.0001716]
[1735178015844,0.161272,99211.0,99210.0,0.0001716]
[1735178016050,0.26525832,99211.0,99210.0,0.0001716]
[1735178016461,0.26725832,99211.0,99210.0,0.0001716]
[1735178016978,0.26825832,99211.0,99210.0,0.0001716]
[1735178023090,0.78103413,99211.0,99210.0,0.0001716]
[1735178023249,0.75850553,99211.0,99210.0,0.0001716]
[1735178023468,0.50907,99210.0,99209.0,0.00068964]
[1735178023637,0.69423353,99210.0,99209.0,0.00068964]
[1735178024248,0.1,99182.0,99175.0,0.0893635]
[1735178024465,0.34080732,99181.0,99179.0,0.00032681]
[1735178024638,0.44080732,99181.0,99179.0,0.00032681]
[1735178026106,0.44380732,99181.0,99179.0,0.00032681]
[1735178026919,0.44580732,99181.0,99179.0,0.00032681]
[1735178031452,0.31057,99180.0,99179.0,0.00032681]
[1735178031655,0.51854264,99180.0,99179.0,0.00032681]
[1735178031862,0.45797264,99180.0,99179.0,0.00032681]
[1735178032236,0.48097264,99180.0,99179.0,0.00032681]
[1735178032646,0.48297264,99180.0,99179.0,0.00132681]
[1735178033096,0.48797264,99180.0,99179.0,0.00132681]
[1735178033453,0.25898632,99180.0,99179.0,0.00032681]
[1735178033656,0.25598632,99180.0,99179.0,0.00132681]
[1735178033926,0.002,99180.0,99179.0,0.00132681]
[1735178034982,0.008,99180.0,99179.0,0.00232681]
[1735178035464,0.002,99180.0,99179.0,0.00132681]
[1735178035867,0.002,99180.0,99179.0,0.00032681]
[1735178036402,0.005,99180.0,99179.0,0.00132681]
[1735178036537,0.006,99180.0,99179.0,0.00132681]
[1735178036743,0.001,99180.0,99179.0,0.00032681]
[1735178037740,0.161305,99191.0,99179.0,0.00032681]
[1735178038172,0.001,99180.0,99179.0,0.00971397]
[1735178038646,0.161305,99191.0,99179.0,0.00971397]
[1735178039001,0.164305,99191.0,99179.0,0.00971397]
[1735178039200,0.168305,99191.0,99179.0,0.00971397]
[1735178041079,0.168305,99191.0,99179.0,0.00032681]
[1735178045742,0.168305,99191.0,99179.0,0.00984164]
[1735178049666,0.168305,99191.0,99179.0,0.00032681]
[1735178050427,0.079,99184.0,99179.0,0.00032681]
[1735178050635,0.10398632,99183.0,99179.0,0.00032681]
[1735178050957,0.161319,99182.0,99179.0,0.00032681]
[1735178051154,0.161322,99180.0,99179.0,0.00032681]
[1735178051361,0.26530832,99180.0,99179.0,0.00032681]
[1735178051967,0.51530832,99180.0,99179.0,0.00032681]
[1735178052818,0.51630832,99180.0,99179.0,0.00032681]
[1735178053587,0.42130832,99180.0,99179.0,0.00132681]
[1735178053793,0.42130832,99180.0,99179.0,0.00032681]
[1735178053989,0.42030832,99180.0,99179.0,0.00032681]
[1735178054356,0.42530832,99180.0,99179.0,0.00032681]
[1735178054700,0.42030832,99180.0,99179.0,0.00032681]
[1735178055073,0.42430832,99180.0,99179.0,0.00032681]
[1735178055279,0.43230832,99180.0,99179.0,0.00132681]
[1735178055450,0.51530832,99180.0,99179.0,0.00032681]
[1735178055658,0.64320832,99180.0,99179.0,0.00032681]
[1735178056053,0.68263413,99180.0,99179.0,0.00032681]
[1735178057060,0.67463413,99180.0,99179.0,0.00032681]
[1735178057466,0.67863413,99180.0,99179.0,0.00032681]
[1735178058845,0.68363413,99180.0,99179.0,0.00032681]
[1735178059975,0.70430667,99180.0,99179.0,0.00032681]
[1735178060297,0.77667078,99180.0,99179.0,0.00032681]
[1735178060654,0.70430667,99180.0,99179.0,0.00032681]
[1735178061966,0.68363413,99180.0,99179.0,0.00032681]
[1735178063206,0.239673,99149.0,99148.0,0.0001714]
[1735178063324,0.49365932,99149.0,99148.0,0.0001714]
[1735178064370,0.49371103,99149.0,99148.0,0.0001714]
[1735178065592,0.49471103,99149.0,99148.0,0.0001714]
[1735178066322,0.49371103,99149.0,99148.0,0.0001714]
[1735178066529,0.49471103,99149.0,99148.0,0.0001714]
[1735178066752,0.51216351,99149.0,99148.0,0.0011714]
[1735178066958,0.51116351,99149.0,99148.0,0.0011714]
[1735178067279,0.63916351,99149.0,99148.0,0.0011714]
[1735178067655,0.63416351,99149.0,99148.0,0.0011714]
[1735178067862,0.69473351,99149.0,99148.0,0.0011714]
[1735178068022,0.70073351,99149.0,99148.0,0.0021714]
[1735178068657,0.53216351,99149.0,99148.0,0.0011714]
[1735178068882,0.51816351,99149.0,99148.0,0.0021714]
[1735178069089,0.51816351,99149.0,99148.0,0.0011714]
[1735178069510,0.52716351,99149.0,99148.0,0.0021714]
[1735178070883,0.62716351,99149.0,99148.0,0.0021714]
[1735178072187,0.68773351,99149.0,99148.0,0.0021714]
[1735178084963,0.71073351,99149.0,99148.0,0.0021714]
[1735178085465,0.74213051,99149.0,99148.0,0.0021714]
[1735178086220,0.52716351,99149.0,99148.0,0.0021714]
[1735178086911,0.58773351,99149.0,99148.0,0.0021714]
[1735178091555,0.61917704,99149.0,99148.0,0.0021714]
[1735178093990,0.61894291,99149.0,99148.0,0.0021714]
[1735178101013,0.54087704,99149.0,99148.0,0.0021714]
[1735178101224,0.48030704,99149.0,99148.0,0.0021714]
[1735178101428,0.47085456,99149.0,99148.0,0.0021714]
[1735178101998,0.61262456,99149.0,99148.0,0.0021714]
[1735178102372,0.59462456,99149.0,99148.0,0.0011714]
[1735178102995,0.58862456,99149.0,99148.0,0.0001714]
[1735178103189,0.59362456,99149.0,99148.0,0.0001714]
[1735178103396,0.59162456,99149.0,99148.0,0.0001714]
[1735178103875,0.59762456,99149.0,99148.0,0.0011714]
[1735178104173,0.73952078,99149.0,99148.0,0.0021714]
[1735178106397,0.78361899,99149.0,99148.0,0.0021714]
[1735178107726,0.60362456,99149.0,99148.0,0.0021714]
[1735178108132,0.58862456,99149.0,99148.0,0.0001714]
[1735178108483,0.60362456,99149.0,99148.0,0.0021714]
[1735178110056,0.62394613,99149.0,99148.0,0.0021714]
[1735178110493,0.60362456,99149.0,99148.0,0.0021714]
[1735178112607,0.60371036,99149.0,99148.0,0.0021714]
[1735178113377,0.60774736,99149.0,99148.0,0.0021714]
[1735178114911,0.77694736,99149.0,99148.0,0.0021714]
[1735178115866,0.77094736,99149.0,99148.0,0.0011714]
[1735178116208,0.86794736,99149.0,99148.0,0.0011714]
[1735178116428,1.23587028,99149.0,99148.0,0.0011714]
[1735178117468,1.24487028,99149.0,99148.0,0.0021714]
[1735178124326,1.04487028,99149.0,99148.0,0.0021714]
[1735178124542,0.67986328,99149.0,99148.0,0.0021714]
[1735178124771,0.67986328,99149.0,99148.0,0.0820714]
[1735178124992,0.67986328,99149.0,99148.0,0.0021714]
[1735178125211,0.31194036,99149.0,99148.0,0.0021714]
[1735178125440,0.11312383,99149.0,99148.0,0.0011714]
[1735178125690,0.11312383,99149.0,99148.0,0.0021714]
[1735178125932,0.11012383,99149.0,99148.0,0.0011714]
[1735178126132,0.11612383,99149.0,99148.0,0.0011714]
[1735178126340,0.11012383,99149.0,99148.0,0.0011714]
[1735178126554,0.00613751,99149.0,99148.0,0.0011714]
[1735178127086,0.01013751,99149.0,99148.0,0.0011714]
[1735178127285,0.00413751,99149.0,99148.0,0.0001714]
[1735178127710,0.00913751,99149.0,99148.0,0.0001714]
[1735178128256,0.00513751,99149.0,99148.0,0.0001714]
[1735178128617,0.00813751,99149.0,99148.0,0.0001714]
[1735178128847,0.00313751,99149.0,99148.0,0.0001714]
[1735178129046,0.00013751,99149.0,99148.0,0.0001714]